bitfinex-derivatives/quotes_BTCF0:USTF0_20251009
["timestamp","ask_amount","ask_price","bid_price","bid_amount"]
[1760021142802,0.74591809,121260.0,121250.0,0.85915202]
[1760021143007,0.42636508,121260.0,121250.0,0.85915202]
[1760021143410,0.43648199,121260.0,121250.0,0.85915202]
[1760021143610,0.43648199,121260.0,121250.0,0.85891202]
[1760021143813,0.43648199,121260.0,121250.0,0.12585202]
[1760021144009,0.42636508,121260.0,121250.0,0.93249202]
[1760021144205,0.42636508,121260.0,121250.0,0.93245202]
[1760021146412,0.42636508,121260.0,121250.0,0.12585202]
[1760021146613,0.42636508,121260.0,121250.0,0.93145202]
[1760021146913,0.42636508,121260.0,121250.0,0.12585202]
[1760021147117,0.42636508,121260.0,121250.0,0.93109202]
[1760021148423,0.39549476,121270.0,121260.0,0.12166]
[1760021148424,0.3608,121270.0,121260.0,0.12166]
[1760021149619,0.82140208,121280.0,121270.0,0.12166]
[1760021149821,0.81083953,121280.0,121270.0,0.92634]
[1760021150515,0.42572144,121280.0,121270.0,0.04634]
[1760021150708,0.81083953,121280.0,121270.0,0.92634]
[1760021151119,0.81083953,121280.0,121270.0,0.92726]
[1760021151315,0.81083953,121280.0,121270.0,0.04634]
[1760021151523,0.81083953,121280.0,121270.0,0.9269]
[1760021151720,0.8333659,121280.0,121270.0,0.9269]
[1760021152218,0.74591809,121300.0,121280.0,0.12166]
[1760021152423,0.83331914,121300.0,121290.0,0.85154]
[1760021152624,0.83331914,121300.0,121290.0,0.12166]
[1760021152921,0.83331914,121300.0,121290.0,0.92686]
[1760021153123,0.02254315,121300.0,121290.0,0.2040704]
[1760021153419,0.02254315,121300.0,121290.0,0.92654]
[1760021153620,0.02254315,121300.0,121290.0,1.28734]
[1760021153812,0.02354315,121300.0,121290.0,0.12166]
[1760021154018,0.3618,121300.0,121290.0,0.92622]
[1760021154219,0.3618,121300.0,121290.0,0.12166]
[1760021154517,0.74691809,121300.0,121290.0,0.92594]
[1760021154912,0.38611809,121300.0,121290.0,1.2865]
[1760021155111,0.74691809,121300.0,121290.0,0.12166]
[1760021155316,0.74691809,121300.0,121290.0,0.92554]
[1760021155716,0.3618,121300.0,121290.0,0.92554]
[1760021156019,0.3618,121300.0,121290.0,0.92538]
[1760021157117,0.001,121300.0,121290.0,0.92538]
[1760021157922,0.001,121300.0,121290.0,0.12166]
[1760021158224,0.74691809,121300.0,121290.0,0.8487]
[1760021158423,0.3618,121300.0,121290.0,0.12166]
[1760021158719,0.74691809,121300.0,121290.0,0.12166]
[1760021158922,0.74691809,121300.0,121290.0,0.92394]
[1760021159219,0.76950893,121300.0,121290.0,0.12166]
[1760021159418,1.16950893,121300.0,121290.0,0.04634]
[1760021159623,1.16950893,121300.0,121290.0,0.80184]
[1760021159827,1.55462702,121300.0,121280.0,0.04634]
[1760021160025,0.74591809,121290.0,121280.0,0.04634]
[1760021160224,0.74591809,121290.0,121270.0,0.04634]
[1760021160526,0.74591809,121280.0,121260.0,0.04634]
[1760021160722,0.74591809,121270.0,121260.0,0.04634]
[1760021161116,1.14591809,121270.0,121260.0,0.04634]
[1760021161322,1.14591809,121270.0,121260.0,0.80156]
[1760021161515,1.14591809,121270.0,121250.0,0.05218202]
[1760021161718,0.74591809,121260.0,121250.0,0.05218202]
[1760021162123,0.3608,121260.0,121250.0,0.12750202]
[1760021162321,0.3608,121290.0,121270.0,0.12166]
[1760021162518,0.38348208,121290.0,121280.0,0.84762]
[1760021162722,0.74591809,121290.0,121280.0,0.84762]
[1760021162921,0.76859757,121290.0,121280.0,0.92294]
[1760021163121,0.3608,121290.0,121280.0,0.12166]
[1760021163324,0.38347535,121290.0,121280.0,0.92282]
[1760021163525,0.76859344,121290.0,121280.0,0.12166]
[1760021163830,0.76859344,121290.0,121280.0,0.92258]
[1760021164228,0.38447535,121290.0,121280.0,0.12166]
[1760021164428,0.38447535,121290.0,121280.0,0.9225]
[1760021164829,0.02367535,121290.0,121280.0,0.9225]
[1760021165028,0.02368271,121290.0,121280.0,0.12166]
[1760021165231,0.02368271,121290.0,121280.0,0.92214]
[1760021165932,0.02368271,121290.0,121280.0,0.12166]
[1760021166121,0.02368271,121290.0,121280.0,0.92146]
[1760021166122,0.38448271,121290.0,121280.0,0.92146]
[1760021166324,0.38448271,121290.0,121280.0,0.12166]
[1760021166528,0.02368271,121290.0,121280.0,0.92118]
[1760021167131,0.02368271,121290.0,121280.0,0.9648773]
[1760021167332,0.001,121290.0,121280.0,1.68182]
[1760021167530,0.001,121290.0,121280.0,0.88246]
[1760021167734,0.001,121290.0,121280.0,1.68178]
[1760021168435,0.001,121290.0,121280.0,0.9648774]
[1760021168731,0.001,121290.0,121280.0,1.7636374]
[1760021169134,0.001,121290.0,121280.0,0.9648774]
[1760021169325,0.001,121290.0,121280.0,1.7634774]
[1760021169524,0.001,121290.0,121280.0,1.82845807]
[1760021169934,0.001,121290.0,121280.0,0.94744067]
[1760021170129,0.001,121290.0,121280.0,3.80416067]
[1760021170325,0.001,121290.0,121280.0,3.80392067]
[1760021170529,0.001,121290.0,121280.0,3.88633807]
[1760021170839,0.001,121290.0,121280.0,2.64516067]
[1760021171132,0.66819711,121290.0,121280.0,0.84402]
[1760021171332,0.69088577,121290.0,121280.0,0.84402]
[1760021171529,0.38448866,121290.0,121280.0,0.1194]
[1760021171836,0.001,121290.0,121280.0,1.38297096]
[1760021172131,0.3618,121290.0,121280.0,1.38273096]
[1760021172332,0.3618,121290.0,121280.0,0.58525096]
[1760021172834,0.3618,121290.0,121280.0,1.38257096]
[1760021173037,0.3618,121290.0,121280.0,0.18525096]
[1760021173326,0.3618,121290.0,121280.0,0.91656]
[1760021173531,0.3618,121290.0,121280.0,0.9164]
[1760021174328,0.3618,121290.0,121280.0,0.1194]
[1760021174528,0.001,121290.0,121280.0,0.1194]
[1760021174729,0.001,121290.0,121280.0,0.91592]
[1760021174926,0.001,121290.0,121280.0,0.6018174]
[1760021175133,0.3608,121340.0,121310.0,0.202477]
[1760021175324,0.38350654,121340.0,121330.0,0.04702]
[1760021175728,0.70000834,121340.0,121330.0,0.51398]
[1760021176038,1.10000834,121340.0,121330.0,0.04702]
[1760021176232,1.10000834,121340.0,121330.0,0.4205]
[1760021176839,1.10000834,121340.0,121330.0,0.04702]
[1760021177031,1.10200834,121340.0,121330.0,0.84362]
[1760021177534,0.79561123,121340.0,121330.0,0.84362]
[1760021177731,1.10200834,121340.0,121330.0,0.84362]
[1760021178532,0.86116603,121340.0,121330.0,0.12008]
[1760021178733,0.39561123,121340.0,121330.0,0.91664]
[1760021179633,0.39561123,121340.0,121330.0,0.04702]
[1760021179934,0.79561123,121340.0,121330.0,0.84286]
[1760021180129,1.10200834,121340.0,121330.0,0.04702]
[1760021180334,1.10200834,121340.0,121330.0,0.84254]
[1760021180537,0.38550654,121340.0,121330.0,0.12008]
[1760021180732,0.38550654,121340.0,121330.0,0.91524]
[1760021181133,0.38550654,121340.0,121330.0,0.12008]
[1760021181336,0.38550654,121340.0,121330.0,0.8421]
[1760021181728,0.38550654,121340.0,121330.0,0.915]
[1760021181937,0.38550654,121340.0,121330.0,0.12008]
[1760021182331,0.02470654,121340.0,121330.0,2.06418051]
[1760021182528,0.3608,121360.0,121350.0,0.12008]
[1760021182733,0.39325427,121360.0,121350.0,0.91588]
[1760021182935,0.39325427,121360.0,121350.0,0.91572]
[1760021183240,0.39325427,121360.0,121350.0,0.91564]
[1760021183539,0.38353503,121360.0,121350.0,0.91564]
[1760021184044,0.38353503,121360.0,121350.0,0.12008]
[1760021184238,0.38353503,121360.0,121350.0,0.9152]
[1760021185134,0.38353503,121360.0,121350.0,0.12008]
[1760021185335,0.38353503,121360.0,121350.0,0.9970906]
[1760021185843,0.38353503,121360.0,121350.0,0.6024506]
[1760021186140,0.38353503,121360.0,121350.0,1.31452]
[1760021186731,0.66719711,121380.0,121360.0,0.12008]
[1760021186934,0.3608,121380.0,121370.0,0.86734]
[1760021187135,0.3608,121380.0,121370.0,0.12008]
[1760021187448,0.37091093,121380.0,121370.0,0.91396]
[1760021188335,0.37091093,121380.0,121370.0,0.9136]
[1760021188834,0.37091093,121380.0,121370.0,0.12008]
[1760021189339,0.37091093,121380.0,121370.0,0.91332]
[1760021190541,0.37091093,121380.0,121370.0,0.91316]
[1760021191039,0.37091093,121380.0,121370.0,0.12008]
[1760021191235,0.37091093,121380.0,121340.0,0.39862178]
[1760021191440,0.3608,121330.0,121280.0,0.19443548]
[1760021191638,0.04999999,121340.0,121280.0,0.04702]
[1760021191834,0.30639711,121300.0,121290.0,0.11114]
[1760021192141,0.73155299,121300.0,121290.0,0.11114]
[1760021192341,0.73155299,121300.0,121290.0,0.04702]
[1760021192538,0.73155299,121300.0,121290.0,0.88554]
[1760021192935,0.73155299,121300.0,121290.0,0.8853]
[1760021193340,0.81396009,121300.0,121290.0,0.8853]
[1760021193643,0.81396009,121300.0,121290.0,0.88526]
[1760021194236,0.86902988,121300.0,121290.0,0.12008]
[1760021194435,0.86902988,121300.0,121290.0,0.95844]
[1760021194641,1.17542699,121300.0,121290.0,0.95844]
[1760021195038,1.17542699,121300.0,121290.0,0.12008]
[1760021195239,0.87002988,121300.0,121290.0,0.95744]
[1760021196040,0.8050071,121300.0,121290.0,0.95744]
[1760021197541,0.8050071,121300.0,121290.0,0.12008]
[1760021198143,1.11140421,121300.0,121290.0,0.56836]
[1760021198340,0.8050071,121300.0,121290.0,0.12008]
[1760021198539,1.11140421,121300.0,121290.0,0.9552]
[1760021199141,0.8050071,121300.0,121290.0,0.12008]
[1760021199339,0.8050071,121300.0,121290.0,1.3548]
[1760021199840,0.8050071,121300.0,121290.0,0.52008]
[1760021200144,0.8050071,121300.0,121290.0,1.35412]
[1760021200341,0.8050071,121300.0,121290.0,0.52008]
[1760021200647,0.8050071,121300.0,121290.0,0.93832]
[1760021200648,1.11140421,121300.0,121290.0,0.93832]
[1760021201345,1.11140421,121300.0,121290.0,0.95348]
[1760021201750,1.11140421,121300.0,121290.0,0.12008]
[1760021202046,1.11140421,121300.0,121290.0,0.6352]
[1760021202749,1.11140421,121300.0,121290.0,0.9522]
[1760021202946,1.11140421,121300.0,121290.0,0.952]
[1760021203148,1.11140421,121300.0,121290.0,0.12008]
[1760021203448,0.1584711,121250.0,121240.0,0.04684571]
[1760021203649,0.0824887,121180.0,121170.0,0.19949899]
[1760021203949,0.74968581,121180.0,121170.0,0.05425202]
[1760021204147,0.7216,121180.0,121170.0,0.2016675]
[1760021204446,0.72168432,121180.0,121170.0,0.6016675]
[1760021204745,0.72168432,121180.0,121170.0,1.4423075]
[1760021204942,0.72168432,121180.0,121170.0,1.4420675]
[1760021205142,0.72168432,121180.0,121170.0,0.5926675]
[1760021205342,0.72168432,121180.0,121170.0,2.6509475]
[1760021205748,0.72168432,121180.0,121170.0,3.4907475]
[1760021205945,1.43771143,121180.0,121160.0,0.04684571]
[1760021206144,0.4432956,121170.0,121160.0,0.09432571]
[1760021206343,0.4432956,121170.0,121160.0,0.93456571]
[1760021206543,0.4432956,121170.0,121160.0,0.21099091]
[1760021206745,0.4432956,121170.0,121160.0,1.05103091]
[1760021207349,0.4432956,121170.0,121130.0,2.10584]
[1760021207350,0.04525,121160.0,121110.0,0.00015051]
[1760021207647,0.7216,121120.0,121110.0,0.04763051]
[1760021207849,0.72166312,121120.0,121110.0,0.04763051]
[1760021208043,0.72166312,121120.0,121110.0,0.20997621]
[1760021208549,0.72166312,121120.0,121110.0,1.45069621]
[1760021208751,1.73439422,121120.0,121070.0,0.04748]
[1760021208949,0.4433549,121090.0,121080.0,0.04748]
[1760021209246,0.4433549,121090.0,121080.0,1.54748]
[1760021209247,0.3608,121090.0,121080.0,1.54748]
[1760021209747,0.72166822,121090.0,121080.0,1.54748]
[1760021210054,0.0825705,121060.0,121050.0,0.04748]
[1760021210240,0.8041705,121060.0,121050.0,0.04748]
[1760021210441,0.72169156,121060.0,121050.0,1.54748]
[1760021210844,0.72169156,121060.0,121050.0,0.908]
[1760021211048,0.72169156,121060.0,121050.0,0.04748]
[1760021211352,0.80426796,121060.0,121050.0,0.86004]
[1760021211551,0.0825773,121050.0,121040.0,0.1]
[1760021211747,1.14977441,121050.0,121020.0,0.00010674]
[1760021211954,0.7216,121030.0,121020.0,0.00010674]
[1760021212150,0.72167643,121030.0,121020.0,0.00010674]
[1760021212347,1.12168683,121030.0,121020.0,0.00010674]
[1760021212655,0.72170243,121030.0,121010.0,0.00789214]
[1760021212948,0.66719711,121020.0,121010.0,0.00789214]
[1760021213153,0.36087066,121020.0,121010.0,0.86901214]
[1760021213460,0.8433978,121020.0,121010.0,0.00789214]
[1760021213657,0.36086718,121020.0,121010.0,0.00789214]
[1760021213857,0.44346498,121020.0,121010.0,0.87233214]
[1760021214052,0.84346498,121020.0,121010.0,0.87233214]
[1760021214355,0.84346498,121020.0,121010.0,0.00789214]
[1760021214652,0.84346498,121020.0,121010.0,0.87233214]
[1760021214852,0.76088945,121020.0,120990.0,0.09184571]
[1760021215051,1.11060861,121000.0,120990.0,0.09184571]
[1760021215653,0.0826183,120990.0,120920.0,0.52494393]
[1760021215853,0.0826183,120990.0,120920.0,0.16414393]
[1760021215854,0.66719711,120930.0,120920.0,0.16414393]
[1760021216045,0.30639711,120940.0,120920.0,1.08078393]
[1760021216244,0.7216,120930.0,120920.0,0.21162393]
[1760021216451,0.3608,120930.0,120920.0,1.08058393]
[1760021216753,6.7e-05,120930.0,120920.0,0.31162393]
[1760021216954,6.7e-05,120930.0,120920.0,1.07242393]
[1760021217154,6.7e-05,120930.0,120920.0,1.15509003]
[1760021217455,0.3608,120960.0,120940.0,0.04748]
[1760021217650,0.3608,120960.0,120920.0,0.57242393]
[1760021217852,0.3608,120940.0,120930.0,0.97576]
[1760021218156,0.30639711,120950.0,120940.0,0.14748]
[1760021218353,0.66728536,120950.0,120940.0,0.14748]
[1760021218655,8.825e-05,120950.0,120940.0,0.90828]
[1760021218855,8.825e-05,120950.0,120940.0,1.78436]
[1760021219160,8.825e-05,120950.0,120940.0,1.7844]
[1760021219455,8.825e-05,120950.0,120940.0,0.90828]
[1760021219655,0.2608,120980.0,120960.0,0.04748]
[1760021219859,0.4434124,121000.0,120980.0,0.04748]
[1760021220156,0.3608,121000.0,120990.0,0.87576]
[1760021220358,0.3608,121030.0,121020.0,0.04748]
[1760021220551,0.36089234,121030.0,121000.0,0.04748]
[1760021220856,0.3608,121010.0,121000.0,0.04748]
[1760021221153,0.36089576,121010.0,120980.0,0.04748]
[1760021221353,0.66719711,121000.0,120980.0,0.04748]
[1760021221550,0.36087515,120990.0,120960.0,0.04748]
[1760021221756,0.4434319,120970.0,120960.0,0.04748]
[1760021222056,0.44349426,120970.0,120960.0,0.04748]
[1760021222846,0.44349426,120970.0,120960.0,0.44748]
[1760021222847,0.36086236,120970.0,120960.0,0.44748]
[1760021223053,0.36086236,120970.0,120960.0,1.32244]
[1760021223350,6.236e-05,120970.0,120960.0,0.44748]
[1760021223555,0.3608,120990.0,120980.0,0.04748]
[1760021223753,0.4434102,121010.0,121000.0,0.04748]
[1760021224359,0.8434102,121010.0,121000.0,0.04748]
[1760021224655,0.8434102,121010.0,120980.0,0.04748]
[1760021224963,1.02799711,120990.0,120980.0,0.04748]
[1760021225353,0.7216,120990.0,120980.0,0.92244]
[1760021225754,0.7216,120990.0,120980.0,0.04748]
[1760021226053,0.3608,121000.0,120990.0,0.0826183]
[1760021226354,0.0825942,121030.0,120990.0,0.0826183]
[1760021226355,0.74813104,121020.0,121000.0,0.04748]
[1760021226560,0.83073094,121020.0,121000.0,0.04748]
[1760021226749,0.74813104,121010.0,121000.0,0.04748]
[1760021226955,0.3608,121020.0,121010.0,0.0826046]
[1760021227257,0.74813104,121060.0,121040.0,0.04748]
[1760021227557,0.83069524,121070.0,121040.0,2.871]
[1760021227759,0.3608,121080.0,121060.0,0.04748]
[1760021228057,0.38733104,121070.0,121060.0,0.04748]
[1760021228460,0.38733104,121070.0,121060.0,0.9218]
[1760021228654,0.38733104,121070.0,121060.0,0.9212]
[1760021228853,0.74813104,121070.0,121060.0,0.04748]
[1760021229053,1.53546208,121070.0,121040.0,0.04748]
[1760021229355,1.10893104,121050.0,121020.0,0.04748]
[1760021229561,0.74813104,121030.0,121020.0,0.04748]
[1760021229856,1.10893104,121030.0,121020.0,0.60988]
[1760021230069,0.38733104,121050.0,121020.0,0.92056]
[1760021230070,0.3608,121040.0,121020.0,0.92056]
[1760021230256,0.3608,121040.0,121020.0,0.04748]
[1760021230257,0.4433851,121040.0,121020.0,0.04748]
[1760021230456,0.4433908,121030.0,121020.0,0.04748]
[1760021230658,0.3608,121030.0,121020.0,2.98364]
[1760021230863,0.4433908,121030.0,121020.0,2.98364]
[1760021231165,0.83071794,121040.0,121020.0,2.98364]
[1760021231353,0.4433869,121040.0,121020.0,2.11016]
[1760021231558,0.0825908,121030.0,121020.0,0.04748]
[1760021231760,0.83072184,121030.0,121020.0,2.11016]
[1760021232062,0.83072184,121030.0,121020.0,2.98232]
[1760021232260,0.83072184,121030.0,121000.0,0.04748]
[1760021232457,0.74813104,121010.0,121000.0,0.04748]
[1760021232659,0.3608,121010.0,121000.0,0.04748]
[1760021232854,0.3608,121010.0,121000.0,0.91904]
[1760021233054,0.4433908,121030.0,121020.0,0.0456]
[1760021233261,0.83071854,121040.0,121020.0,0.91684]
[1760021233563,0.3608,121030.0,121020.0,0.91684]
[1760021233753,0.83071794,121040.0,121020.0,0.0456]
[1760021233957,0.83071554,121040.0,121020.0,0.0456]
[1760021234256,0.3608,121050.0,121040.0,0.0456]
[1760021234561,0.3608,121050.0,121040.0,1.78603504]
[1760021234758,0.3608,121050.0,121040.0,1.398704]
[1760021234961,0.3608,121060.0,121040.0,0.4456]
[1760021235264,0.3608,121060.0,121040.0,0.0456]
[1760021235658,0.38733104,121050.0,121040.0,0.0456]
[1760021235853,0.38733104,121060.0,121040.0,1.3152]
[1760021236054,0.74813104,121060.0,121040.0,0.4456]
[1760021236258,0.74813104,121050.0,121040.0,0.0456]
[1760021236454,0.38733104,121050.0,121040.0,0.91472]
[1760021236763,0.0825908,121030.0,121020.0,0.0456]
[1760021237156,0.0825908,121030.0,121020.0,2.97732]
[1760021237358,0.0825908,121030.0,121020.0,3.33812]
[1760021238155,0.0825824,121050.0,121040.0,0.0456]
[1760021238364,0.74813104,121070.0,121040.0,1.357744]
[1760021238665,0.38733104,121060.0,121040.0,0.4064]
[1760021238865,0.38733104,121060.0,121050.0,0.86788]
[1760021239060,0.74813104,121070.0,121050.0,1.26788]
[1760021239259,0.38733104,121060.0,121050.0,0.86788]
[1760021239660,0.74813104,121070.0,121060.0,0.0456]
[1760021239863,0.46989454,121070.0,121060.0,0.0446]
[1760021240065,0.3608,121080.0,121060.0,0.0446]
[1760021240066,0.4433576,121080.0,121060.0,1.3939273]
[1760021240367,0.74813104,121090.0,121070.0,0.86664]
[1760021240563,0.0825635,121070.0,121060.0,2.10716]
[1760021240866,0.74813104,121090.0,121070.0,0.0825635]
[1760021241063,0.4433542,121090.0,121080.0,0.91111]
[1760021241260,0.3608,121140.0,121100.0,0.04503]
[1760021241563,0.38733104,121130.0,121120.0,0.04503]
[1760021241862,0.38733104,121130.0,121080.0,0.3608]
[1760021241863,0.03542,121120.0,121080.0,0.3608]
[1760021242065,0.74813104,121090.0,121080.0,0.60824]
[1760021242365,0.74813104,121090.0,121060.0,0.0446]
[1760021242666,0.74813104,121070.0,121050.0,2.42324]
[1760021242866,0.38733104,121070.0,121060.0,0.87004]
[1760021243063,0.38733104,121080.0,121060.0,1.27587]
[1760021243263,0.38733104,121080.0,121060.0,0.40583]
[1760021243470,0.74813104,121080.0,121070.0,0.87004]
[1760021243662,0.38733104,121080.0,121070.0,1.23084]
[1760021243864,0.38733104,121080.0,121070.0,0.3608]
[1760021244063,0.38733104,121080.0,121070.0,1.22972]
[1760021244263,0.3608,121100.0,121070.0,0.3608]
[1760021244463,0.3608,121100.0,121080.0,0.86892]
[1760021244862,0.3608,121100.0,121090.0,0.86832]
[1760021245270,0.3608,121100.0,121090.0,0.86772]
[1760021245468,0.3608,121100.0,121040.0,0.11156903]
[1760021245469,0.7608,121100.0,121040.0,0.40591191]
[1760021245667,0.38733104,121050.0,121040.0,2.46823191]
[1760021245861,0.74813104,121050.0,121040.0,8.191e-05]
[1760021246067,0.3608,121050.0,121040.0,0.86748191]
[1760021246260,0.3608,121060.0,121040.0,1.26748191]
[1760021246465,0.38733104,121060.0,121040.0,0.40591191]
[1760021246764,0.38733104,121060.0,121050.0,0.86696]
[1760021247563,0.74813104,121070.0,121040.0,0.48849531]
[1760021247871,0.74813104,121070.0,121060.0,0.04503]
[1760021248267,0.3608,121090.0,121060.0,0.4884001]
[1760021248467,0.38733104,121080.0,121070.0,0.86712]
[1760021248673,0.74813104,121080.0,121060.0,0.04503]
[1760021248971,0.38733104,121080.0,121060.0,0.40583]
[1760021249172,0.38733104,121080.0,121070.0,0.765]
[1760021249371,0.38733104,121080.0,121070.0,1.1258]
[1760021249872,0.3608,121090.0,121080.0,0.04503]
[1760021250070,0.38733104,121090.0,121080.0,0.91055]
[1760021250462,0.38733104,121100.0,121080.0,1.353906]
[1760021250768,0.38733104,121100.0,121090.0,0.3608]
[1760021250976,0.38733104,121100.0,121090.0,1.22548]
[1760021251269,0.3608,121080.0,121040.0,8.191e-05]
[1760021251570,0.77466208,121050.0,121000.0,0.04503]
[1760021251762,0.74813104,121010.0,121000.0,0.04503]
[1760021251970,0.74813104,121010.0,121000.0,0.91847]
[1760021252164,0.74813104,121010.0,121000.0,0.04503]
[1760021252669,0.74820056,121010.0,121000.0,0.91819]
[1760021252874,0.36086952,121010.0,121000.0,0.04503]
[1760021253077,0.74820056,121010.0,121000.0,0.28931]
[1760021253276,0.83080486,121010.0,121000.0,0.91731]
[1760021253768,0.44347382,121010.0,121000.0,0.04503]
[1760021253971,0.85421395,121010.0,121000.0,0.91735]
[1760021254470,1.24154499,121010.0,121000.0,0.04503]
[1760021254773,1.24154499,121010.0,121000.0,0.87116]
[1760021254972,0.85421395,121010.0,121000.0,0.04503]
[1760021255376,0.85421395,121010.0,121000.0,0.91627]
[1760021255577,0.85421395,121010.0,121000.0,0.04503]
[1760021255870,1.64154499,121010.0,120980.0,0.04503]
[1760021256074,1.10893104,120990.0,120980.0,0.04503]
[1760021256371,1.10893104,120990.0,120940.0,0.04503]
[1760021256372,1.56168845,120990.0,120940.0,0.04503]
[1760021256564,0.74813104,120950.0,120930.0,7.404e-05]
[1760021256764,0.3608,120940.0,120930.0,7.404e-05]
[1760021256969,0.36089603,120940.0,120930.0,7.404e-05]
[1760021257164,0.36089603,120940.0,120930.0,0.87431404]
[1760021257374,0.36089603,120940.0,120930.0,7.404e-05]
[1760021257971,0.36089603,120940.0,120930.0,0.87339404]
[1760021258271,1.14822707,120940.0,120930.0,0.87339404]
[1760021258772,1.14822707,120940.0,120930.0,0.87303404]
[1760021259074,1.14822707,120940.0,120930.0,0.87295404]
[1760021259271,1.14822707,120940.0,120930.0,7.404e-05]
[1760021259464,1.14822707,120940.0,120930.0,0.28863404]
[1760021259465,1.1482307,120940.0,120930.0,0.28863404]
[1760021259663,1.14822554,120940.0,120930.0,0.28863404]
[1760021259873,1.14819658,120940.0,120930.0,0.28863404]
[1760021260069,0.082659,120930.0,120920.0,0.06529087]
[1760021260274,0.082659,120930.0,120910.0,4e-08]
[1760021260275,0.045,120920.0,120910.0,4e-08]
[1760021260574,0.79313104,120920.0,120910.0,4e-08]
[1760021260773,1.58046208,120920.0,120910.0,4e-08]
[1760021261171,1.19313104,120920.0,120910.0,4e-08]
[1760021261371,1.58046208,120920.0,120910.0,4e-08]
[1760021261566,1.58046208,120920.0,120860.0,0.04605]
[1760021261876,1.58046208,120920.0,120860.0,0.3816]
[1760021261877,0.74813104,120870.0,120860.0,0.3816]
[1760021262077,0.74820417,120870.0,120860.0,0.92829]
[1760021262270,0.74820417,120870.0,120850.0,0.00784202]
[1760021262271,1.14813104,120870.0,120850.0,0.00784202]
[1760021262472,0.74821537,120860.0,120850.0,0.89044202]
[1760021262772,0.74821537,120860.0,120850.0,0.89308202]
[1760021262972,0.36088433,120860.0,120850.0,0.89308202]
[1760021263168,0.74821537,120860.0,120850.0,0.89308202]
[1760021263366,0.74821537,120860.0,120850.0,0.00784202]
[1760021263567,1.14821537,120860.0,120850.0,0.00784202]
[1760021263779,1.14821537,120860.0,120850.0,0.89756202]
[1760021263975,1.14821537,120860.0,120850.0,0.00784202]
[1760021264176,1.23092227,120860.0,120850.0,0.89756202]
[1760021264371,1.23092227,120860.0,120850.0,0.00784202]
[1760021264578,1.14821537,120860.0,120850.0,0.89828202]
[1760021264778,1.23092227,120860.0,120850.0,0.00784202]
[1760021264984,1.23092227,120860.0,120850.0,0.89756202]
[1760021265174,0.44359123,120860.0,120850.0,0.89756202]
[1760021265380,0.38741537,120860.0,120850.0,0.89712202]
[1760021265876,8.433e-05,120860.0,120850.0,0.40784202]
[1760021266081,8.433e-05,120860.0,120850.0,0.85135572]
[1760021266376,8.433e-05,120860.0,120850.0,0.76864202]
[1760021266576,8.433e-05,120860.0,120850.0,1.29740202]
[1760021266774,8.433e-05,120860.0,120850.0,0.40784202]
[1760021266975,8.433e-05,120860.0,120850.0,2.04489306]
[1760021267276,0.3608,120880.0,120850.0,1.37947582]
[1760021267478,0.74813104,120880.0,120860.0,2.99844]
[1760021267781,0.3608,120870.0,120860.0,2.11024]
[1760021267979,0.74813104,120870.0,120860.0,2.11024]
[1760021268275,0.36089013,120870.0,120860.0,2.51024]
[1760021268480,1.14813104,120870.0,120850.0,2e-08]
[1760021268682,0.74813104,120860.0,120850.0,2e-08]
[1760021268884,1.14813104,120860.0,120850.0,2e-08]
[1760021269083,0.74813104,120860.0,120850.0,2e-08]
[1760021269283,0.74821369,120860.0,120850.0,2e-08]
[1760021269579,1.14813104,120860.0,120850.0,2e-08]
[1760021270483,0.83089989,120860.0,120850.0,2e-08]
[1760021270986,0.44356885,120860.0,120850.0,2e-08]
[1760021271174,0.83089989,120860.0,120850.0,2e-08]
[1760021271382,0.38733104,120860.0,120850.0,0.36080002]
[1760021271685,0.3608,120870.0,120850.0,0.36080002]
[1760021271881,0.47003104,120870.0,120860.0,0.3608]
[1760021272184,0.47003104,120870.0,120860.0,1.24868]
[1760021272185,0.0827,120870.0,120860.0,1.24868]
[1760021272389,0.08274307,120870.0,120860.0,1.24868]
[1760021272574,0.47007411,120870.0,120860.0,1.24808]
[1760021272781,0.08274307,120870.0,120860.0,0.3608]
[1760021272976,4.307e-05,120870.0,120860.0,3.25897104]
[1760021273183,0.38733104,120890.0,120870.0,0.03216484]
[1760021273478,0.38733104,120890.0,120880.0,1.24824]
[1760021273686,0.38733104,120890.0,120880.0,0.39296484]
[1760021273988,0.38733104,120890.0,120880.0,1.2476]
[1760021274183,0.38733104,120900.0,120880.0,0.76748]
[1760021274379,0.38733104,120900.0,120890.0,1.24724]
[1760021274578,0.38733104,120910.0,120890.0,0.3608]
[1760021274778,0.3933492,120920.0,120900.0,0.3608]
[1760021274984,0.3933492,120920.0,120910.0,0.3608]
[1760021275179,0.00601816,120920.0,120910.0,1.24608]
[1760021275375,0.38733104,120920.0,120910.0,1.24608]
[1760021275581,0.45483385,120930.0,120910.0,1.24608]
[1760021275775,0.38733104,120930.0,120920.0,0.3608]
[1760021276082,0.38733104,120950.0,120920.0,1.24524]
[1760021276288,0.39340998,120950.0,120940.0,0.3608]
[1760021276586,0.36687894,120950.0,120920.0,0.40668]
[1760021276781,0.74813104,120950.0,120930.0,0.88456]
[1760021277284,0.8476163,120950.0,120930.0,0.88456]
[1760021277480,0.00605034,120960.0,120940.0,0.40668]
[1760021277686,0.3608,120990.0,120950.0,0.3608]
[1760021277883,0.4868163,120980.0,120960.0,1.24404]
[1760021278086,0.3608,120990.0,120970.0,0.3608]
[1760021278282,0.4868163,120990.0,120980.0,0.3608]
[1760021278484,0.8476163,121000.0,120980.0,0.3608]
[1760021278685,0.57546425,121000.0,120980.0,1.24388]
[1760021278879,0.57546425,121000.0,120980.0,0.3608]
[1760021279083,0.57546425,121000.0,120980.0,1.24356]
[1760021279387,0.57549037,121000.0,120980.0,1.24356]
[1760021279587,0.02290199,121000.0,120990.0,1.24288]
[1760021279776,0.02876929,121000.0,120990.0,1.24288]
[1760021279981,0.02876929,121000.0,120990.0,0.3608]
[1760021280183,0.02876929,121000.0,120990.0,1.24224]
[1760021280583,0.02876929,121000.0,120990.0,0.3608]
[1760021280778,0.02876929,121000.0,120990.0,1.24168]
[1760021281486,0.02876929,121000.0,120990.0,0.3608]
[1760021281688,0.02876929,121000.0,120980.0,0.8476163]
[1760021281985,0.02876929,121000.0,120990.0,0.87972]
[1760021282187,0.0058673,121000.0,120990.0,0.87972]
[1760021282381,0.09662775,121010.0,120990.0,1.24052]
[1760021282588,0.0312576,121010.0,120990.0,0.8476163]